fUSD/lending_fUSD_20240412
["ID","MTS","AMOUNT","RATE_DAILY","PERIOD"]
[322294905,1712939483573,-151.0,0.000498,120]
[322294906,1712939483582,-151.0,0.000498,120]
[322294907,1712939483592,-151.0,0.000498,120]
[322294908,1712939483602,-200.619876,0.000498,120]
[322294909,1712939483611,-151.0,0.000498,120]
[322294910,1712939483622,-150.0,0.00049807,30]
[322294911,1712939483631,-224.23333333,0.00049808,120]
[322294912,1712939483641,-2968.9,0.00049829,117]
[322294913,1712939483651,-150.0,0.0004984,30]
[322294914,1712939483660,-150.0,0.0004984,30]
[322294915,1712939483669,-500.0,0.00049863,120]
[322294916,1712939483679,-500.0,0.00049863,120]
[322294917,1712939483688,-508.57,0.00049863,120]
[322294918,1712939483697,-500.0,0.00049863,120]
[322294919,1712939483706,-561.65,0.00049863,120]
[322294920,1712939483716,-500.0,0.00049863,120]
[322294921,1712939483726,-661.69,0.00049863,2]
[322294922,1712939483735,-500.0,0.00049863,120]
[322294923,1712939483748,-202.73379348,0.00049863,120]
[322294924,1712939483757,-525.48,0.00049863,120]
[322294925,1712939483766,-500.0,0.00049863,120]
[322294926,1712939483775,-500.0,0.00049863,120]
[322294927,1712939483785,-579.42,0.00049863,120]
[322294928,1712939483794,-500.0,0.00049863,120]
[322294929,1712939483804,-500.0,0.00049863,120]
[322294930,1712939483813,-500.0,0.00049863,120]
[322294931,1712939483822,-500.0,0.00049863,120]
[322294932,1712939483832,-500.0,0.00049863,120]
[322294933,1712939483842,-500.0,0.00049863,120]
[322294934,1712939483851,-718.46,0.00049863,120]
[322294935,1712939483861,-500.0,0.00049863,120]
[322294936,1712939483870,-500.0,0.00049863,120]
[322294937,1712939483883,-500.0,0.00049863,120]
[322294938,1712939483904,-500.0,0.00049863,120]
[322294939,1712939483914,-513.42,0.00049863,120]
[322294940,1712939483924,-595.54,0.00049863,2]
[322294941,1712939483933,-586.75,0.00049863,120]
[322294942,1712939483943,-500.0,0.00049863,120]
[322294943,1712939483953,-500.0,0.00049863,120]
[322294944,1712939484095,-500.0,0.00049863,120]
[322294945,1712939484106,-500.0,0.00049863,120]
[322294946,1712939484116,-500.0,0.00049863,120]
[322294947,1712939484126,-500.0,0.00049863,120]
[322294948,1712939484135,-500.0,0.00049863,120]
[322294949,1712939484145,-704.2,0.00049863,120]
[322294950,1712939484156,-3000.0,0.00049863,120]
[322294951,1712939484167,-546.18,0.00049863,120]
[322294952,1712939484177,-500.0,0.00049863,120]
[322294953,1712939484187,-500.0,0.00049863,120]
[322294954,1712939484197,-500.0,0.00049863,120]
[322294955,1712939484208,-1352.77,0.00049863,120]
[322294956,1712939484217,-673.18,0.00049863,120]
[322294957,1712939484226,-500.0,0.00049863,120]
[322294958,1712939484237,-500.0,0.00049863,120]
[322294959,1712939484250,-629.37,0.00049863,120]
[322294960,1712939484259,-500.0,0.00049863,120]
[322294961,1712939484268,-500.0,0.00049863,120]
[322294962,1712939484278,-2203.64,0.00049863,120]
[322294963,1712939484287,-500.0,0.00049863,120]
[322294964,1712939484296,-1162.01,0.00049863,120]
[322294965,1712939484305,-2667.34,0.00049863,120]
[322294966,1712939484314,-716.23,0.00049863,120]
[322294967,1712939484324,-1151.02,0.00049863,120]
[322294968,1712939484334,-500.0,0.00049863,120]
[322294969,1712939484344,-597.82,0.00049863,120]
[322294970,1712939484353,-634.43,0.00049863,120]
[322294971,1712939484362,-1280.3,0.00049863,120]
[322294972,1712939484372,-500.0,0.00049863,120]
[322294973,1712939484381,-1116.79,0.00049863,120]
[322294974,1712939484390,-500.0,0.00049863,120]
[322294975,1712939484399,-500.0,0.00049863,120]
[322294976,1712939484409,-7302.32,0.00049863,120]
[322294977,1712939484418,-1813.94,0.00049863,120]
[322294978,1712939484428,-807.13,0.00049863,120]
[322294979,1712939484437,-500.0,0.00049863,120]
[322294980,1712939484447,-609.01,0.00049863,120]
[322294981,1712939484457,-519.31,0.00049863,120]
[322294982,1712939484466,-1010.89,0.00049863,120]
[322294983,1712939484475,-500.0,0.00049863,120]
[322294984,1712939484485,-500.0,0.00049863,120]
[322294985,1712939484497,-2090.34,0.00049863,120]
[322294986,1712939484506,-670.23,0.00049863,120]
[322294987,1712939484515,-520.06,0.00049863,120]
[322294988,1712939484526,-500.0,0.00049863,120]
[322294989,1712939484539,-500.0,0.00049863,120]
[322294990,1712939484549,-500.0,0.00049863,120]
[322294991,1712939484558,-568.18,0.00049863,120]
[322294992,1712939484570,-500.0,0.00049863,120]
[322294993,1712939484580,-500.0,0.00049863,120]
[322294994,1712939484590,-500.0,0.00049863,120]
[322294995,1712939484599,-500.0,0.00049863,120]
[322294996,1712939484609,-500.0,0.00049863,120]
[322294997,1712939484619,-1311.53,0.00049863,120]
[322294998,1712939484628,-1628.88,0.00049863,120]
[322294999,1712939484639,-500.0,0.00049863,120]
[322295000,1712939484648,-515.58,0.00049863,120]
[322295001,1712939484658,-575.22815214,0.00049863,120]
[322295002,1712939484667,-14006.78,0.00049863,120]
[322295003,1712939484676,-500.0,0.00049863,120]
[322295004,1712939484685,-500.0,0.00049863,120]
[322295005,1712939484694,-500.0,0.00049863,120]
[322295006,1712939484704,-803.87,0.00049863,120]
[322295007,1712939484713,-500.0,0.00049863,120]
[322295008,1712939484724,-500.0,0.00049863,120]
[322295009,1712939484733,-2680.68,0.00049863,120]
[322295010,1712939484745,-978.71,0.00049863,120]
[322295011,1712939484754,-556.48,0.00049863,120]
[322295012,1712939484764,-2121.53,0.00049863,120]
[322295013,1712939484774,-500.0,0.00049863,120]
[322295014,1712939484783,-1410.1,0.00049863,120]
[322295015,1712939484793,-603.45,0.00049863,120]
[322295016,1712939484802,-2010.88,0.00049863,120]
[322295017,1712939484812,-500.0,0.00049863,120]
[322295018,1712939484821,-524.48,0.00049863,120]
[322295019,1712939484830,-500.0,0.00049863,120]
[322295020,1712939484839,-895.41,0.00049863,120]
[322295021,1712939484850,-2625.88,0.00049863,120]
[322295022,1712939484859,-299.87800266,0.00049863,120]
[322295023,1712939484869,-2788.58,0.00049863,120]
[322295024,1712939484878,-1235.34,0.00049863,120]
[322295025,1712939484888,-665.73,0.00049863,120]
[322295026,1712939484898,-1020.56,0.00049863,120]
[322295027,1712939484907,-819.11,0.00049863,120]
[322295028,1712939484917,-565.07,0.00049863,120]
[322295029,1712939484927,-920.52,0.00049863,120]
[322295030,1712939484936,-500.0,0.00049863,120]
[322295031,1712939484945,-584.81,0.00049863,120]
[322295032,1712939484955,-1006.65,0.00049863,120]
[322295033,1712939484964,-6172.84,0.00049863,120]
[322295034,1712939484973,-502.19,0.00049863,120]
[322295035,1712939484983,-1224.43,0.00049863,120]
[322295036,1712939484997,-701.12,0.00049863,120]
[322295037,1712939485006,-3794.47,0.00049863,120]
[322295038,1712939485015,-500.0,0.00049863,120]
[322295039,1712939485024,-795.66,0.00049863,120]
[322295040,1712939485033,-608.21,0.00049863,120]
[322295041,1712939485042,-938.69,0.00049863,120]
[322295042,1712939485051,-1074.92,0.00049863,120]
[322295043,1712939485060,-705.22,0.00049863,120]
[322295044,1712939485070,-926.87,0.00049863,120]
[322295045,1712939485079,-2317.31,0.00049863,120]
[322295046,1712939485089,-566.69,0.00049863,120]
[322295047,1712939485099,-550.45,0.00049863,120]
[322295048,1712939485108,-1028.71,0.00049863,120]
[322295049,1712939485118,-500.0,0.00049863,120]
[322295050,1712939485128,-1045.05,0.00049863,120]
[322295051,1712939485137,-500.0,0.00049863,120]
[322295052,1712939485147,-1536.84,0.00049863,120]
[322295053,1712939485157,-500.0,0.00049863,120]
[322295054,1712939485166,-500.0,0.00049863,120]
[322295055,1712939485175,-500.0,0.00049863,120]
[322295056,1712939485185,-1599.82,0.00049863,120]
[322295057,1712939485194,-886.03,0.00049863,120]
[322295058,1712939485204,-500.0,0.00049863,120]
[322295059,1712939485214,-593.38,0.00049863,21]
[322295060,1712939485223,-868.49,0.00049863,120]
[322295061,1712939485233,-995.51,0.00049863,120]
[322295062,1712939485245,-500.0,0.00049863,120]
[322295063,1712939485255,-753.01,0.00049863,120]
[322295064,1712939485264,-660.73,0.00049863,120]
[322295065,1712939485273,-500.0,0.00049863,120]
[322295066,1712939485283,-2246.9,0.00049863,120]
[322295067,1712939485293,-150.0,0.00049872,30]
[322295068,1712939485302,-150.0,0.00049875,30]
[322295069,1712939485312,-173.52919186,0.000499,38]
[322295070,1712939485321,-10562.40614535,0.000499,2]
[322295071,1712939485331,-2100.0,0.000499,18]
[322295072,1712939485340,-150.0,0.00049904,30]
[322295073,1712939485349,-150.0,0.0004992,30]
[322295074,1712939485359,-7854.76906174,0.00049927,35]
[322295075,1712939485368,-150.0,0.00049936,30]
[322295076,1712939485377,-150.0,0.00049968,30]
[322295077,1712939485387,-500.0,0.0004997,3]
[322295078,1712939485396,-700.0,0.0004997,3]
[322295079,1712939485405,-219.0,0.0004999,30]
[322295080,1712939485414,-211.0,0.0004999,30]
[322295081,1712939485423,-219.0,0.0004999,30]
[322295082,1712939485432,-211.0,0.0004999,30]
[322295083,1712939485441,-500.0,0.00049999,120]
[322295084,1712939485451,-416.60457272,0.00049999,120]
[322295085,1712939485460,-500.0,0.00049999,120]
[322295086,1712939485470,-638.21183603,0.00049999,120]
[322295087,1712939485478,-100000.0,0.0005,50]
[322295088,1712939485487,-150.0,0.0005,30]
[322295089,1712939485498,-150.0,0.0005,30]
[322295090,1712939485507,-150.0,0.0005,30]
[322295091,1712939485516,-220.00894532,0.0005,30]
[322295092,1712939485525,-150.0,0.0005,30]
[322295093,1712939485535,-452421.20678437,0.0005,120]
[322295094,1712939485543,-430.84152305,0.0005,28]
[322295095,1712939485554,-29450.87880579,0.0005,30]
[322295096,1712939485563,-155.0,0.0005,2]
[322295097,1712939485574,-1035.9853032,0.0005,120]
[322295098,1712939485583,-150.0,0.0005,27]
[322295099,1712939485592,-481.0,0.0005,38]
[322295100,1712939485601,-12959.88349289,0.0005,120]
[322295101,1712939485610,-150.0,0.0005,120]
[322295102,1712939485619,-394.0,0.0005,27]
[322295103,1712939485629,-200.0,0.0005,90]
[322295104,1712939485638,-1144.76930171,0.0005,2]
[322295105,1712939485647,-1121.98509439,0.0005,2]
[322295106,1712939485656,-817.90614579,0.0005,2]
[322295107,1712939485665,-3889.45040682,0.0005,2]
[322295108,1712939485674,-57893.22430482,0.0005,14]
[322295109,1712939485683,-224.64,0.0005,120]
[322295110,1712939485692,-1048.0,0.0005,120]
[322295111,1712939485702,-550.0,0.0005,120]
[322295112,1712939485711,-170.0,0.0005,120]
[322295113,1712939485720,-430563.18196637,0.0005,30]
[322295114,1712939485729,-1200.0,0.0005,120]
[322295115,1712939485739,-39956.33535882,0.0005,120]
[322295116,1712939485749,-39956.33535882,0.0005,120]
[322295117,1712939485758,-39956.33535882,0.0005,120]
[322295118,1712939485767,-39956.33535882,0.0005,120]
[322295119,1712939485776,-39956.33535882,0.0005,120]
[322295120,1712939485786,-39956.33535882,0.0005,120]
[322295121,1712939485795,-39956.33535882,0.0005,120]
[322295122,1712939485805,-33707.93897597,0.0005,120]
[322295123,1712939486142,-6248.39638285,0.0005,120]
[322295124,1712939486152,-39956.33535882,0.0005,120]
[322295125,1712939486162,-39956.33435882,0.0005,120]
[322295126,1712939486172,-1035.33985301,0.0005,120]
[322295127,1712939486181,-3000.0,0.0005,120]
[322295128,1712939486191,-200.0,0.0005,27]
[322295129,1712939486200,-150.0,0.0005,10]
[322295130,1712939486210,-8533.0,0.0005,9]
[322295131,1712939486220,-4895.0,0.0005,120]
[322295132,1712939486230,-578.15637721,0.00050136,120]
[322295133,1712939486239,-500.0,0.00050136,120]
[322295134,1712939486251,-508.57,0.00050136,120]
[322295135,1712939486260,-500.0,0.00050136,120]
[322295136,1712939486269,-561.65,0.00050136,120]
[322295137,1712939486279,-500.0,0.00050136,120]
[322295138,1712939486290,-661.69,0.00050136,2]
[322295139,1712939486299,-500.0,0.00050136,120]
[322295140,1712939486309,-525.48,0.00050136,120]
[322295141,1712939486318,-500.0,0.00050136,120]
[322295142,1712939486328,-500.0,0.00050136,120]
[322295143,1712939486337,-579.42,0.00050136,120]
[322295144,1712939486346,-500.0,0.00050136,120]
[322295145,1712939486356,-500.0,0.00050136,120]
[322295146,1712939486365,-151.0,0.00050136,120]
[322295147,1712939486374,-151.0,0.00050136,120]
[322295148,1712939486384,-500.0,0.00050136,120]
[322295149,1712939486393,-500.0,0.00050136,120]
[322295150,1712939486402,-182.030433,0.00050136,120]
[322295151,1712939486411,-182.030433,0.00050136,120]
[322295152,1712939486421,-718.46,0.00050136,120]
[322295153,1712939486430,-151.0,0.00050136,120]
[322295154,1712939486439,-151.0,0.00050136,120]
[322295155,1712939486448,-202.027168,0.00050136,120]
[322295156,1712939486458,-151.0,0.00050136,120]
[322295157,1712939486467,-151.0,0.00050136,120]
[322295158,1712939486478,-500.0,0.00050136,120]
[322295159,1712939486487,-500.0,0.00050136,120]
[322295160,1712939486498,-151.0,0.00050136,30]
[322295161,1712939486508,-173.377447,0.00050136,30]
[322295162,1712939486517,-500.0,0.00050136,120]
[322295163,1712939486528,-500.0,0.00050136,120]
[322295164,1712939486538,-225.671511,0.00050136,120]
[322295165,1712939486549,-225.671511,0.00050136,120]
[322295166,1712939486559,-513.42,0.00050136,120]
[322295167,1712939486569,-595.54,0.00050136,2]
[322295168,1712939486580,-586.75,0.00050136,120]
[322295169,1712939486589,-151.0,0.00050136,14]
[322295170,1712939486599,-153.805087,0.00050136,120]
[322295171,1712939486608,-356.77395246,0.00050136,120]
[322295172,1712939486617,-500.0,0.00050136,120]
[322295173,1712939486628,-151.0,0.00050136,120]
[322295174,1712939486637,-151.0,0.00050136,120]
[322295175,1712939486648,-151.0,0.00050136,120]
[322295176,1712939486657,-151.0,0.00050136,30]
[322295177,1712939486666,-151.0,0.00050136,120]
[322295178,1712939486675,-151.0,0.00050136,120]
[322295179,1712939486684,-500.0,0.00050136,120]
[322295180,1712939486693,-151.0,0.00050136,120]
[322295181,1712939486703,-327.42,0.00050136,120]
[322295182,1712939486712,-500.0,0.00050136,120]
[322295183,1712939486722,-500.0,0.00050136,120]
[322295184,1712939486732,-704.2,0.00050136,120]
[322295185,1712939486741,-151.0,0.00050136,120]
[322295186,1712939486753,-3000.0,0.00050136,120]
[322295187,1712939486762,-151.0,0.00050136,120]
[322295188,1712939486772,-613.416944,0.00050136,45]
[322295189,1712939486781,-613.416944,0.00050136,45]
[322295190,1712939486791,-546.18,0.00050136,120]
[322295191,1712939486801,-151.0,0.00050136,120]
[322295192,1712939486810,-500.0,0.00050136,120]
[322295193,1712939486820,-151.0,0.00050136,120]
[322295194,1712939486830,-500.0,0.00050136,120]
[322295195,1712939486840,-151.0,0.00050136,120]
[322295196,1712939486849,-500.0,0.00050136,120]
[322295197,1712939486859,-1352.77,0.00050136,120]
[322295198,1712939486870,-673.18,0.00050136,120]
[322295199,1712939486880,-500.0,0.00050136,120]
[322295200,1712939486889,-500.0,0.00050136,120]
[322295201,1712939486900,-629.37,0.00050136,120]
[322295202,1712939486910,-500.0,0.00050136,120]
[322295203,1712939486920,-151.0,0.00050136,120]
[322295204,1712939486930,-500.0,0.00050136,120]
[322295205,1712939486940,-2203.64,0.00050136,120]
[322295206,1712939486949,-500.0,0.00050136,120]
[322295207,1712939486959,-2667.34,0.00050136,120]
[322295208,1712939486969,-1162.01,0.00050136,120]
[322295209,1712939486978,-716.23,0.00050136,120]
[322295210,1712939486988,-1151.02,0.00050136,120]
[322295211,1712939486999,-500.0,0.00050136,120]
[322295212,1712939487010,-597.82,0.00050136,120]
[322295213,1712939487019,-634.43,0.00050136,120]
[322295214,1712939487029,-1280.3,0.00050136,120]
[322295215,1712939487038,-500.0,0.00050136,120]
[322295216,1712939487049,-1116.79,0.00050136,120]
[322295217,1712939487058,-151.0,0.00050136,7]
[322295218,1712939487068,-500.0,0.00050136,120]
[322295219,1712939487077,-500.0,0.00050136,120]
[322295220,1712939487088,-7302.32,0.00050136,120]
[322295221,1712939487097,-1813.94,0.00050136,120]
[322295222,1712939487107,-151.0,0.00050136,120]
[322295223,1712939487117,-807.13,0.00050136,120]
[322295224,1712939487126,-500.0,0.00050136,120]
[322295225,1712939487136,-609.01,0.00050136,120]
[322295226,1712939487146,-519.31,0.00050136,120]
[322295227,1712939487156,-1010.89,0.00050136,120]
[322295228,1712939487165,-570.52799,0.00050136,120]
[322295229,1712939487176,-500.0,0.00050136,120]
[322295230,1712939487186,-2090.34,0.00050136,120]
[322295231,1712939487195,-570.52799,0.00050136,120]
[322295232,1712939487205,-670.23,0.00050136,120]
[322295233,1712939487214,-520.06,0.00050136,120]
[322295234,1712939487223,-500.0,0.00050136,120]
[322295235,1712939487233,-500.0,0.00050136,120]
[322295236,1712939487243,-500.0,0.00050136,120]
[322295237,1712939487254,-154.242716,0.00050136,120]
[322295238,1712939487263,-568.18,0.00050136,120]
[322295239,1712939487272,-500.0,0.00050136,120]
[322295240,1712939487281,-500.0,0.00050136,120]
[322295241,1712939487290,-500.0,0.00050136,120]
[322295242,1712939487300,-500.0,0.00050136,120]
[322295243,1712939487310,-500.0,0.00050136,120]
[322295244,1712939487319,-1311.53,0.00050136,120]
[322295245,1712939487328,-1628.88,0.00050136,120]
[322295246,1712939487338,-151.0,0.00050136,120]
[322295247,1712939487348,-534.86663411,0.00050136,120]
[322295248,1712939487358,-515.58,0.00050136,120]
[322295249,1712939487367,-14006.78,0.00050136,120]
[322295250,1712939487377,-500.0,0.00050136,120]
[322295251,1712939487386,-151.0,0.00050136,120]
[322295252,1712939487395,-500.0,0.00050136,120]
[322295253,1712939487404,-500.0,0.00050136,120]
[322295254,1712939487413,-803.87,0.00050136,120]
[322295255,1712939487422,-500.0,0.00050136,120]
[322295256,1712939487432,-500.0,0.00050136,120]
[322295257,1712939487441,-2680.68,0.00050136,120]
[322295258,1712939487450,-151.0,0.00050136,120]
[322295259,1712939487460,-978.71,0.00050136,120]
[322295260,1712939487469,-2121.53,0.00050136,120]
[322295261,1712939487479,-264.8269,0.00050136,120]
[322295262,1712939487489,-500.0,0.00050136,120]
[322295263,1712939487500,-1410.1,0.00050136,120]
[322295264,1712939487509,-603.45,0.00050136,120]
[322295265,1712939487519,-151.0,0.00050136,120]
[322295266,1712939487530,-2010.88,0.00050136,120]
[322295267,1712939487541,-151.0,0.00050136,120]
[322295268,1712939487550,-500.0,0.00050136,120]
[322295269,1712939487560,-524.48,0.00050136,120]
[322295270,1712939487569,-500.0,0.00050136,120]
[322295271,1712939487579,-895.41,0.00050136,120]
[322295272,1712939487590,-2625.88,0.00050136,120]
[322295273,1712939487599,-2788.58,0.00050136,120]
[322295274,1712939487609,-1235.34,0.00050136,120]
[322295275,1712939487621,-665.73,0.00050136,120]
[322295276,1712939487632,-1020.56,0.00050136,120]
[322295277,1712939487642,-819.11,0.00050136,120]
[322295278,1712939487652,-565.07,0.00050136,120]
[322295279,1712939487661,-151.0,0.00050136,120]
[322295280,1712939487670,-500.0,0.00050136,120]
[322295281,1712939487680,-920.52,0.00050136,120]
[322295282,1712939487691,-151.0,0.00050136,120]
[322295283,1712939487702,-584.81,0.00050136,120]
[322295284,1712939487712,-1006.65,0.00050136,120]
[322295285,1712939487721,-6172.84,0.00050136,120]
[322295286,1712939487731,-502.19,0.00050136,120]
[322295287,1712939487740,-1224.43,0.00050136,120]
[322295288,1712939487752,-701.12,0.00050136,120]
[322295289,1712939487760,-3794.47,0.00050136,120]
[322295290,1712939487769,-500.0,0.00050136,120]
[322295291,1712939487779,-795.66,0.00050136,120]
[322295292,1712939487788,-608.21,0.00050136,120]
[322295293,1712939487798,-938.69,0.00050136,120]
[322295294,1712939487808,-1074.92,0.00050136,120]
[322295295,1712939487818,-705.22,0.00050136,120]
[322295296,1712939487827,-926.87,0.00050136,120]
[322295297,1712939487838,-2317.31,0.00050136,120]
[322295298,1712939487847,-566.69,0.00050136,120]
[322295299,1712939487857,-550.45,0.00050136,120]
[322295300,1712939487866,-1028.71,0.00050136,120]
[322295301,1712939487876,-500.0,0.00050136,120]
[322295302,1712939487885,-1045.05,0.00050136,120]
[322295303,1712939487895,-500.0,0.00050136,120]
[322295304,1712939487905,-1536.84,0.00050136,120]
[322295305,1712939487914,-500.0,0.00050136,120]
[322295306,1712939487924,-500.0,0.00050136,120]
[322295307,1712939487934,-500.0,0.00050136,120]
[322295308,1712939488048,-1599.82,0.00050136,120]
[322295309,1712939488058,-886.03,0.00050136,120]
[322295310,1712939488068,-500.0,0.00050136,120]
[322295311,1712939488078,-593.38,0.00050136,21]
[322295312,1712939488088,-868.49,0.00050136,120]
[322295313,1712939488097,-995.51,0.00050136,120]
[322295314,1712939488107,-500.26908929,0.00050136,120]
[322295315,1712939488117,-753.01,0.00050136,120]
[322295316,1712939488126,-660.73,0.00050136,120]
[322295317,1712939488136,-500.0,0.00050136,120]
[322295318,1712939488146,-2246.9,0.00050136,120]
[322295319,1712939488155,-200.0,0.00050144,120]
[322295320,1712939488165,-3000.0,0.00050273,120]
[322295321,1712939488174,-500.0,0.0005041,120]
[322295322,1712939488183,-508.57,0.0005041,120]
[322295323,1712939488192,-500.0,0.0005041,120]
[322295324,1712939488201,-561.65,0.0005041,120]
[322295325,1712939488210,-500.0,0.0005041,120]
[322295326,1712939488219,-661.69,0.0005041,2]
[322295327,1712939488229,-525.48,0.0005041,120]
[322295328,1712939488238,-500.0,0.0005041,120]
[322295329,1712939488248,-500.0,0.0005041,120]
[322295330,1712939488257,-579.42,0.0005041,120]
[322295331,1712939488266,-500.0,0.0005041,120]
[322295332,1712939488275,-500.0,0.0005041,120]
[322295333,1712939488284,-500.0,0.0005041,120]
[322295334,1712939488294,-500.0,0.0005041,120]
[322295335,1712939488303,-718.46,0.0005041,120]
[322295336,1712939488312,-500.0,0.0005041,120]
[322295337,1712939488321,-500.0,0.0005041,120]
[322295338,1712939488330,-500.0,0.0005041,120]
[322295339,1712939488339,-500.0,0.0005041,120]
[322295340,1712939488348,-513.42,0.0005041,120]
[322295341,1712939488357,-595.54,0.0005041,2]
[322295342,1712939488367,-586.75,0.0005041,120]
[322295343,1712939488376,-500.0,0.0005041,120]
[322295344,1712939488385,-500.0,0.0005041,120]
[322295345,1712939488394,-500.0,0.0005041,120]
[322295346,1712939488403,-500.0,0.0005041,120]
[322295347,1712939488413,-704.2,0.0005041,120]
[322295348,1712939488422,-3000.0,0.0005041,120]
[322295349,1712939488431,-546.18,0.0005041,120]
[322295350,1712939488440,-500.0,0.0005041,120]
[322295351,1712939488449,-500.0,0.0005041,120]
[322295352,1712939488459,-500.0,0.0005041,120]
[322295353,1712939488468,-1352.77,0.0005041,120]
[322295354,1712939488478,-673.18,0.0005041,120]
[322295355,1712939488487,-150.12115744,0.0005041,120]
[322295356,1712939488497,-500.0,0.0005041,120]
[322295357,1712939488506,-629.37,0.0005041,120]
[322295358,1712939488516,-500.0,0.0005041,120]
[322295359,1712939488526,-2203.64,0.0005041,120]
[322295360,1712939488535,-181.16951572,0.0005041,120]
[322295361,1712939488545,-2667.34,0.0005041,120]
[322295362,1712939488555,-1162.01,0.0005041,120]
[322295363,1712939488564,-716.23,0.0005041,120]
[322295364,1712939488574,-1151.02,0.0005041,120]
[322295365,1712939488583,-500.0,0.0005041,120]
[322295366,1712939488593,-597.82,0.0005041,120]
[322295367,1712939488602,-634.43,0.0005041,120]
[322295368,1712939488611,-1280.3,0.0005041,120]
[322295369,1712939488623,-500.0,0.0005041,120]
[322295370,1712939488633,-1116.79,0.0005041,120]
[322295371,1712939488643,-500.0,0.0005041,120]
[322295372,1712939488652,-263.91,0.0005041,120]
[322295373,1712939488662,-7302.32,0.0005041,120]
[322295374,1712939488671,-1813.94,0.0005041,120]
[322295375,1712939488680,-807.13,0.0005041,120]
[322295376,1712939488690,-500.0,0.0005041,120]
[322295377,1712939488699,-609.01,0.0005041,120]
[322295378,1712939488709,-519.31,0.0005041,120]
[322295379,1712939488718,-1010.89,0.0005041,120]
[322295380,1712939488727,-500.0,0.0005041,120]
[322295381,1712939488737,-2090.34,0.0005041,120]
[322295382,1712939488746,-670.23,0.0005041,120]
[322295383,1712939488756,-520.06,0.0005041,120]
[322295384,1712939488765,-494.84930858,0.0005041,120]
[322295385,1712939488775,-500.0,0.0005041,120]
[322295386,1712939488785,-500.0,0.0005041,120]
[322295387,1712939488794,-568.18,0.0005041,120]
[322295388,1712939488803,-500.0,0.0005041,120]
[322295389,1712939488813,-500.0,0.0005041,120]
[322295390,1712939488828,-500.0,0.0005041,120]
[322295391,1712939488837,-500.0,0.0005041,120]
[322295392,1712939488847,-500.0,0.0005041,120]
[322295393,1712939488856,-1311.53,0.0005041,120]
[322295394,1712939488865,-1628.88,0.0005041,120]
[322295395,1712939488874,-515.58,0.0005041,120]
[322295396,1712939488883,-14006.78,0.0005041,120]
[322295397,1712939488892,-428.96,0.0005041,120]
[322295398,1712939488902,-500.0,0.0005041,120]
[322295399,1712939488912,-500.0,0.0005041,120]
[322295400,1712939488921,-803.87,0.0005041,120]
[322295401,1712939488931,-546.50697316,0.0005041,120]
[322295402,1712939488940,-500.0,0.0005041,120]
[322295403,1712939488949,-2680.68,0.0005041,120]
[322295404,1712939488959,-978.71,0.0005041,120]